fUSD/lending_fUSD_20240919
["ID","MTS","AMOUNT","RATE_DAILY","PERIOD"]
[338548177,1726729838168,-500.0,0.00013163,2]
[338548179,1726729838178,-873.42,0.00013163,2]
[338548181,1726729838188,-508.22038718,0.00013163,2]
[338548183,1726729838198,-1571.64,0.00013163,2]
[338548184,1726729838208,-500.0,0.00013163,2]
[338548185,1726729838219,-1894.25,0.00013163,2]
[338548186,1726729838228,-500.0,0.00013163,2]
[338548187,1726729838239,-796.27,0.00013163,2]
[338548188,1726729838249,-500.0,0.00013163,2]
[338548189,1726729838259,-500.0,0.00013163,2]
[338548190,1726729838269,-500.0,0.00013163,2]
[338548191,1726729838279,-500.0,0.00013163,2]
[338548192,1726729838288,-1379.99,0.00013163,2]
[338548193,1726729838298,-572.76,0.00013163,2]
[338548194,1726729838307,-514.92,0.00013163,2]
[338548195,1726729838317,-644.66,0.00013163,2]
[338548196,1726729838327,-500.0,0.00013163,2]
[338548197,1726729838336,-830.39,0.00013163,2]
[338548198,1726729838346,-2243.4,0.00013163,2]
[338548199,1726729838355,-500.0,0.00013163,2]
[338548200,1726729838366,-500.0,0.00013163,2]
[338548201,1726729838379,-892.42,0.00013163,2]
[338548202,1726729838388,-677.84,0.00013163,2]
[338548203,1726729838397,-500.0,0.00013163,2]
[338548204,1726729838407,-500.0,0.00013163,2]
[338548205,1726729838416,-1022.75,0.00013163,2]
[338548206,1726729838426,-500.0,0.00013163,2]
[338548207,1726729838436,-1148.5,0.00013163,2]
[338548208,1726729838446,-500.0,0.00013163,2]
[338548209,1726729838455,-500.0,0.00013163,2]
[338548210,1726729838465,-500.0,0.00013163,2]
[338548211,1726729838474,-579.43,0.00013163,2]
[338548212,1726729838484,-1150.23,0.00013163,2]
[338548213,1726729838494,-500.0,0.00013163,2]
[338548214,1726729838503,-500.0,0.00013163,2]
[338548215,1726729838512,-500.0,0.00013163,2]
[338548216,1726729838522,-607.09,0.00013163,2]
[338548217,1726729838531,-500.0,0.00013163,2]
[338548218,1726729838540,-958.68,0.00013163,2]
[338548219,1726729838550,-500.0,0.00013163,2]
[338548221,1726729838559,-500.0,0.00013163,2]
[338548223,1726729838568,-500.0,0.00013163,2]
[338548225,1726729838578,-602.98,0.00013163,2]
[338548227,1726729838588,-500.0,0.00013163,2]
[338548229,1726729838597,-500.0,0.00013163,2]
[338548231,1726729838606,-500.0,0.00013163,2]
[338548232,1726729838616,-500.0,0.00013163,2]
[338548233,1726729838630,-500.0,0.00013163,2]
[338548234,1726729838642,-500.0,0.00013163,2]
[338548235,1726729838652,-1019.83,0.00013163,2]
[338548236,1726729838661,-707.39,0.00013163,2]
[338548237,1726729838670,-548.93,0.00013163,2]
[338548238,1726729838680,-501.44,0.00013163,2]
[338548239,1726729838689,-609.88,0.00013163,2]
[338548240,1726729838699,-1020.69,0.00013163,2]
[338548241,1726729838708,-500.0,0.00013163,2]
[338548242,1726729838717,-500.0,0.00013163,2]
[338548243,1726729838727,-1254.91,0.00013163,2]
[338548244,1726729838736,-500.0,0.00013163,2]
[338548245,1726729838746,-500.0,0.00013163,2]
[338548246,1726729838755,-500.0,0.00013163,2]
[338548247,1726729838764,-500.0,0.00013163,2]
[338548248,1726729838773,-500.0,0.00013163,2]
[338548249,1726729838782,-500.0,0.00013163,2]
[338548250,1726729838792,-500.0,0.00013163,2]
[338548251,1726729838801,-500.0,0.00013163,2]
[338548252,1726729838811,-500.0,0.00013163,2]
[338548253,1726729838820,-669.44,0.00013163,2]
[338548254,1726729838829,-500.0,0.00013163,2]
[338548255,1726729838839,-1005.42,0.00013163,2]
[338548256,1726729839141,-772.82,0.00013163,2]
[338548257,1726729839164,-500.0,0.00013163,2]
[338548258,1726729839174,-1160.51,0.00013163,2]
[338548259,1726729839183,-500.0,0.00013163,2]
[338548260,1726729839193,-500.0,0.00013163,2]
[338548261,1726729839203,-500.0,0.00013163,2]
[338548262,1726729839213,-938.52,0.00013163,2]
[338548263,1726729839223,-500.0,0.00013163,2]
[338548264,1726729839233,-500.0,0.00013163,2]
[338548265,1726729839243,-500.0,0.00013163,2]
[338548266,1726729839255,-1211.18,0.00013163,2]
[338548267,1726729839266,-579.01,0.00013163,2]
[338548268,1726729839277,-500.0,0.00013163,2]
[338548269,1726729839286,-769.05,0.00013163,2]
[338548270,1726729839296,-500.0,0.00013163,2]
[338548271,1726729839307,-591.84,0.00013163,2]
[338548272,1726729839316,-500.0,0.00013163,2]
[338548273,1726729839327,-500.0,0.00013163,2]
[338548274,1726729839338,-680.86,0.00013163,2]
[338548275,1726729839348,-703.17,0.00013163,2]
[338548276,1726729839360,-568.03,0.00013163,2]
[338548278,1726729839370,-500.0,0.00013163,2]
[338548279,1726729839381,-500.0,0.00013163,2]
[338548280,1726729839391,-500.0,0.00013163,2]
[338548281,1726729839401,-1450.17,0.00013163,2]
[338548283,1726729839410,-500.0,0.00013163,2]
[338548284,1726729839420,-1817.67,0.00013163,2]
[338548285,1726729839430,-1076.37,0.00013163,2]
[338548286,1726729839441,-769.07,0.00013163,2]
[338548287,1726729839451,-500.0,0.00013163,2]
[338548288,1726729839461,-500.0,0.00013163,2]
[338548291,1726729839471,-500.0,0.00013163,2]
[338548293,1726729839481,-500.0,0.00013163,2]
[338548294,1726729839490,-500.0,0.00013163,2]
[338548295,1726729839499,-500.0,0.00013163,2]
[338548297,1726729839510,-1474.59,0.00013163,2]
[338548298,1726729839521,-1462.48,0.00013163,2]
[338548299,1726729839531,-1041.06,0.00013163,2]
[338548300,1726729839543,-5348.02,0.00013163,2]
[338548301,1726729839555,-500.0,0.00013163,2]
[338548302,1726729839564,-3157.28,0.00013163,2]
[338548303,1726729839574,-500.0,0.00013163,2]
[338548304,1726729839583,-1895.6,0.00013163,2]
[338548305,1726729839593,-330.79599562,0.00013163,2]
[338548306,1726729839602,-500.0,0.00013163,2]
[338548307,1726729839612,-500.0,0.00013163,2]
[338548308,1726729839621,-1245.23,0.00013163,2]
[338548309,1726729839632,-500.0,0.00013163,2]
[338548310,1726729839642,-500.0,0.00013163,2]
[338548311,1726729839652,-500.0,0.00013163,2]
[338548312,1726729839662,-542.73,0.00013163,2]
[338548313,1726729839672,-500.0,0.00013163,2]
[338548314,1726729839682,-500.0,0.00013163,2]
[338548315,1726729839691,-500.0,0.00013163,2]
[338548316,1726729839700,-624.2,0.00013163,2]
[338548317,1726729839710,-500.0,0.00013163,2]
[338548318,1726729839719,-500.0,0.00013163,2]
[338548319,1726729839729,-500.0,0.00013163,2]
[338548320,1726729839740,-653.63,0.00013163,2]
[338548321,1726729839751,-500.0,0.00013163,2]
[338548322,1726729839762,-500.0,0.00013163,2]
[338548323,1726729839771,-761.62,0.00013163,2]
[338548324,1726729839782,-500.0,0.00013163,2]
[338548325,1726729839791,-9635.34,0.00013163,2]
[338548326,1726729839802,-500.0,0.00013163,2]
[338548327,1726729839812,-500.0,0.00013163,2]
[338548328,1726729839822,-500.0,0.00013163,2]
[338548329,1726729839831,-964.13,0.00013163,2]
[338548330,1726729839842,-500.0,0.00013163,2]
[338548331,1726729839851,-584.66,0.00013163,2]
[338548332,1726729839861,-21717.28,0.00013163,2]
[338548333,1726729839871,-1667.66,0.00013163,2]
[338548334,1726729839882,-469.62,0.00013163,2]
[338548335,1726729839892,-2243.42,0.00013163,2]
[338548336,1726729839901,-890.98,0.00013163,2]
[338548337,1726729839911,-500.0,0.00013163,2]
[338548338,1726729839921,-804.38,0.00013163,2]
[338548339,1726729839930,-828.23,0.00013163,2]
[338548340,1726729839940,-500.0,0.00013163,2]
[338548341,1726729839949,-3580.03,0.00013163,2]
[338548342,1726729839959,-2808.52,0.00013163,2]
[338548343,1726729839968,-500.0,0.00013163,2]
[338548344,1726729839978,-1989.44,0.00013163,2]
[338548345,1726729839987,-631.78,0.00013163,2]
[338548348,1726729839997,-500.0,0.00013163,2]
[338548351,1726729840007,-500.0,0.00013163,2]
[338548354,1726729840016,-695.9,0.00013163,2]
[338548357,1726729840025,-500.0,0.00013163,2]
[338548359,1726729840035,-526.0,0.00013163,2]
[338548361,1726729840045,-2406.68,0.00013163,2]
[338548363,1726729840055,-5332.15,0.00013163,2]
[338548365,1726729840065,-696.82,0.00013163,2]
[338548367,1726729840074,-2150.52,0.00013163,2]
[338548369,1726729840084,-1456.85,0.00013163,2]
[338548371,1726729840094,-500.0,0.00013163,2]
[338548373,1726729840103,-583.25,0.00013163,2]
[338548375,1726729840113,-500.0,0.00013163,2]
[338548376,1726729840123,-500.0,0.00013163,2]
[338548378,1726729840132,-581.96,0.00013163,2]
[338548380,1726729840142,-1973.46,0.00013163,2]
[338548382,1726729840151,-2866.81,0.00013163,2]
[338548384,1726729840161,-500.0,0.00013163,2]
[338548386,1726729840171,-2334.84,0.00013163,2]
[338548389,1726729840180,-500.0,0.00013163,2]
[338548390,1726729840190,-500.0,0.00013163,2]
[338548392,1726729840200,-500.0,0.00013163,2]
[338548394,1726729840211,-500.0,0.00013163,2]
[338548396,1726729840220,-3562.20231128,0.00013163,2]
[338548398,1726729840242,-754.897,0.00013163,2]
[338548399,1726729840844,196.1047,0.00012689,2]
[338548400,1726729841089,-320.31531078,0.0001279,2]
[338548401,1726729841098,-1522.49,0.00012889,2]
[338548402,1726729841108,-500.0,0.00012889,2]
[338548403,1726729841118,-1893.91959017,0.00013163,2]
[338548404,1726729841131,-214.53109855,0.00013163,2]
[338548405,1726729841140,-901.97216773,0.00013163,2]
[338548406,1726729841169,-1482.11783227,0.00013163,2]
[338548407,1726729841179,-1067.44116777,0.00013163,2]
[338548408,1726729841190,-2200.0,0.00013163,2]
[338548409,1726729841697,-25.50883223,0.00013163,2]
[338548410,1726729841706,-798.98,0.00013163,2]
[338548411,1726729841715,-710.8,0.00013163,2]
[338548412,1726729841724,-70.69116777,0.00013163,2]
[338548413,1726729841736,-429.30883223,0.00013163,2]
[338548414,1726729841745,-257.19116778,0.00013163,2]
[338548415,1726729841756,-353.26883222,0.00013163,2]
[338548416,1726729841766,-1142.40229236,0.00013163,2]
[338548417,1726729841778,-2289.52770764,0.00013163,2]
[338548418,1726729841787,-3867.55377955,0.00013163,2]
[338548419,1726729841802,-161.59622045,0.00013163,2]
[338548420,1726729841812,-500.0,0.00013163,2]
[338548421,1726729841821,-50.83603546,0.00013163,2]
[338548422,1726729841832,-2588.12396454,0.00013163,2]
[338548423,1726729841842,-2027.01,0.00013163,2]
[338548424,1726729841851,-860.94,0.00013163,2]
[338548425,1726729841860,-908.98,0.00013163,2]
[338548426,1726729841870,-1131.37,0.00013163,2]
[338548427,1726729841882,-855.56,0.00013163,2]
[338548428,1726729841892,-1058.01,0.00013163,2]
[338548429,1726729841902,-1341.34,0.00013163,2]
[338548430,1726729841912,-1764.63,0.00013163,2]
[338548431,1726729841921,-500.0,0.00013163,2]
[338548432,1726729841931,-1949.84,0.00013163,2]
[338548433,1726729841940,-500.0,0.00013163,2]
[338548434,1726729841950,-500.0,0.00013163,2]
[338548435,1726729841960,-256.83216003,0.00013163,2]
[338548436,1726729841969,-498.74766756,0.00013163,2]
[338548437,1726729841981,-1.25233244,0.00013163,2]
[338548438,1726729841991,-1962.54,0.00013163,2]
[338548439,1726729842002,-781.9218054,0.00013163,2]
[338548440,1726729842013,-484.43905378,0.00013163,2]
[338548445,1726729842564,-303.98914082,0.00013163,2]
[338548447,1726729842573,-70.08563029,0.00013163,2]
[338548448,1726729842584,-810.37700052,0.00013163,2]
[338548449,1726729842595,-295.91736919,0.00013163,2]
[338548450,1726729842605,-500.0,0.00013163,2]
[338548452,1726729842614,-1985.23,0.00013163,2]
[338548454,1726729842623,-689.03556039,0.00013163,2]
[338548456,1726729842636,-413.63443961,0.00013163,2]
[338548458,1726729842645,-500.0,0.00013163,2]
[338548459,1726729842654,-659.02,0.00013163,2]
[338548460,1726729842663,-500.0,0.00013163,2]
[338548461,1726729842673,-1667.56,0.00013163,2]
[338548462,1726729842682,-1782.24,0.00013163,2]
[338548463,1726729842691,-46.54138268,0.00013163,2]
[338548464,1726729842702,-453.45861732,0.00013163,2]
[338548465,1726729842711,-46.54138268,0.00013163,2]
[338548466,1726729842723,-462.7030002,0.00013163,2]
[338548467,1726729842735,-278.00371446,0.00013163,2]
[338548468,1726729842745,-1620.16190266,0.00013163,2]
[338548469,1726729842754,-2997.3,0.00013163,2]
[338548470,1726729842763,-1102.07354993,0.00013163,2]
[338548471,1726729842774,-291.88343201,0.00013163,2]
[338548472,1726729842785,-219.79301806,0.00013163,2]
[338548473,1726729842795,-1522.49,0.00013163,2]
[338548474,1726729842804,-382.94725081,0.00013163,2]
[338548475,1726729842813,-546.66,0.00013164,2]
[338548476,1726729842822,-500.0,0.00013164,2]
[338548477,1726729842831,-500.0,0.00013164,2]
[338548478,1726729842840,-613.89599393,0.00013164,2]
[338548508,1726729843233,-153.30400607,0.00013164,2]
[338548510,1726729843243,-663.28,0.00013164,2]
[338548512,1726729843252,-400.92274456,0.00013164,2]
[338548514,1726729843263,-469.47725544,0.00013164,2]
[338548516,1726729843273,-500.0,0.00013164,2]
[338548518,1726729843282,-680.45,0.00013164,2]
[338548520,1726729843291,-914.20574456,0.00013164,2]
[338548522,1726729843302,-200.37425544,0.00013164,2]
[338548524,1726729843311,-201.10467121,0.00013164,2]
[338548526,1726729843322,-298.89532879,0.00013164,2]
[338548528,1726729843331,-500.0,0.00013164,2]
[338548530,1726729843340,-500.0,0.00013164,2]
[338548532,1726729843350,-134.86771499,0.00013164,2]
[338548570,1726729843936,-508.350001,0.00013164,2]
[338548579,1726729844010,-219.47228401,0.00013164,2]
[338548581,1726729844021,-596.08,0.00013164,2]
[338548583,1726729844031,-63.62586099,0.00013164,2]
[338548586,1726729844044,-436.37413901,0.00013164,2]
[338548588,1726729844055,-500.0,0.00013164,2]
[338548590,1726729844065,-1121.99,0.00013164,2]
[338548592,1726729844075,-500.0,0.00013164,2]
[338548594,1726729844086,-500.0,0.00013164,2]
[338548596,1726729844096,-500.0,0.00013164,2]
[338548598,1726729844106,-500.0,0.00013164,2]
[338548600,1726729844116,-500.0,0.00013164,2]
[338548602,1726729844126,-500.0,0.00013164,2]
[338548604,1726729844136,-950.29,0.00013164,2]
[338548605,1726729844146,-500.0,0.00013164,2]
[338548606,1726729844156,-500.0,0.00013164,2]
[338548607,1726729844166,-533.92,0.00013164,2]
[338548608,1726729844177,-500.0,0.00013164,2]
[338548609,1726729844187,-554.59,0.00013164,2]
[338548610,1726729844197,-500.0,0.00013164,2]
[338548611,1726729844208,-500.0,0.00013164,2]
[338548612,1726729844218,-500.0,0.00013164,2]
[338548613,1726729844228,-500.0,0.00013164,2]
[338548614,1726729844237,-500.0,0.00013164,2]
[338548615,1726729844248,-500.0,0.00013164,2]
[338548616,1726729844258,-500.0,0.00013164,2]
[338548617,1726729844268,-742.92,0.00013164,2]
[338548618,1726729844278,-500.0,0.00013164,2]
[338548619,1726729844288,-500.0,0.00013164,2]
[338548620,1726729844298,-500.0,0.00013164,2]
[338548621,1726729844309,-500.0,0.00013164,2]
[338548622,1726729844319,-500.0,0.00013164,2]
[338548623,1726729844330,-500.0,0.00013164,2]
[338548624,1726729844341,-500.0,0.00013164,2]
[338548625,1726729844353,-915.63,0.00013164,2]
[338548626,1726729844367,-549.96,0.00013164,2]
[338548627,1726729844380,-1083.45,0.00013164,2]
[338548628,1726729844390,-500.0,0.00013164,2]
[338548629,1726729844400,-667.57,0.00013164,2]
[338548630,1726729844410,-500.0,0.00013164,2]
[338548631,1726729844420,-537.46,0.00013164,2]
[338548632,1726729844433,-500.0,0.00013164,2]
[338548633,1726729844444,-500.0,0.00013164,2]
[338548634,1726729844455,-500.0,0.00013164,2]
[338548635,1726729844466,-500.0,0.00013164,2]
[338548636,1726729844476,-500.0,0.00013164,2]
[338548637,1726729844487,-500.0,0.00013164,2]
[338548638,1726729844498,-500.0,0.00013164,2]
[338548639,1726729844511,-500.0,0.00013164,2]
[338548640,1726729844522,-500.0,0.00013164,2]
[338548641,1726729844533,-500.0,0.00013164,2]
[338548642,1726729844543,-500.0,0.00013164,2]
[338548643,1726729844553,-971.69,0.00013164,2]
[338548644,1726729844564,-500.0,0.00013164,2]
[338548645,1726729844574,-500.0,0.00013164,2]
[338548646,1726729844585,-500.0,0.00013164,2]
[338548647,1726729844598,-720.34,0.00013164,2]
[338548648,1726729844610,-983.1,0.00013164,2]
[338548649,1726729844625,-500.0,0.00013164,2]
[338548650,1726729844640,-714.49,0.00013164,2]
[338548651,1726729844652,-500.0,0.00013164,2]
[338548652,1726729844664,-797.11,0.00013164,2]
[338548653,1726729844675,-717.09,0.00013164,2]
[338548654,1726729844686,-500.0,0.00013164,2]
[338548655,1726729844699,-500.0,0.00013164,2]
[338548656,1726729844710,-500.0,0.00013164,2]
[338548657,1726729844722,-500.0,0.00013164,2]
[338548658,1726729844733,-500.0,0.00013164,2]
[338548659,1726729844746,-500.0,0.00013164,2]
[338548660,1726729844757,-500.0,0.00013164,2]
[338548661,1726729844769,-500.0,0.00013164,2]
[338548662,1726729844782,-589.49,0.00013164,2]
[338548663,1726729844796,-1589.45,0.00013164,2]
[338548664,1726729844810,-500.0,0.00013164,2]
[338548665,1726729844823,-500.0,0.00013164,2]
[338548666,1726729844836,-500.0,0.00013164,2]
[338548667,1726729844850,-1128.29,0.00013164,2]
[338548668,1726729844861,-500.0,0.00013164,2]
[338548669,1726729844873,-1551.37,0.00013164,2]
[338548670,1726729844895,-1147.41,0.00013164,2]
[338548671,1726729844906,-686.58,0.00013164,2]
[338548672,1726729844919,-1010.02,0.00013164,2]
[338548673,1726729844931,-1506.96,0.00013164,2]
[338548674,1726729844943,-500.0,0.00013164,2]
[338548675,1726729844954,-725.39,0.00013164,2]
[338548676,1726729844966,-500.0,0.00013164,2]
[338548677,1726729844976,-500.0,0.00013164,2]
[338548678,1726729844987,-636.67,0.00013164,2]
[338548679,1726729844998,-500.0,0.00013164,2]
[338548680,1726729845009,-538.89,0.00013164,2]
[338548681,1726729845020,-500.0,0.00013164,2]
[338548682,1726729845032,-682.37,0.00013164,2]
[338548683,1726729845043,-1083.46,0.00013164,2]
[338548684,1726729845055,-500.0,0.00013164,2]
[338548685,1726729845067,-782.47,0.00013164,2]
[338548686,1726729845079,-1065.25,0.00013164,2]
[338548687,1726729845091,-500.0,0.00013164,2]
[338548688,1726729845103,-500.0,0.00013164,2]
[338548689,1726729845115,-500.0,0.00013164,2]
[338548690,1726729845130,-500.0,0.00013164,2]
[338548691,1726729845145,-500.0,0.00013164,2]
[338548692,1726729845155,-781.41,0.00013164,2]
[338548693,1726729845166,-1029.27,0.00013164,2]
[338548694,1726729845177,-500.0,0.00013164,2]
[338548695,1726729845187,-1307.46,0.00013164,2]
[338548696,1726729845198,-500.0,0.00013164,2]
[338548697,1726729845210,-568.78,0.00013164,2]
[338548698,1726729845221,-500.0,0.00013164,2]
[338548699,1726729845233,-836.52,0.00013164,2]
[338548700,1726729845246,-1304.88,0.00013164,2]
[338548701,1726729845256,-500.0,0.00013164,2]
[338548702,1726729845266,-500.0,0.00013164,2]
[338548703,1726729845279,-500.0,0.00013164,2]
[338548704,1726729845290,-613.42,0.00013164,2]
[338548705,1726729845301,-718.99,0.00013164,2]
[338548706,1726729845313,-513.37,0.00013164,2]
[338548707,1726729845326,-500.0,0.00013164,2]
[338548708,1726729845337,-715.0,0.00013164,2]
[338548709,1726729845347,-1519.54,0.00013164,2]
[338548710,1726729845359,-500.0,0.00013164,2]
[338548711,1726729845371,-1342.82,0.00013164,2]
[338548712,1726729845385,-500.0,0.00013164,2]
[338548713,1726729845396,-760.2,0.00013164,2]
[338548714,1726729845407,-539.88,0.00013164,2]
[338548715,1726729845418,-500.0,0.00013164,2]
[338548716,1726729845429,-587.66,0.00013164,2]
[338548717,1726729845440,-905.51,0.00013164,2]
[338548718,1726729845456,-500.0,0.00013164,2]
[338548719,1726729845467,-1310.96,0.00013164,2]
[338548720,1726729845478,-733.84,0.00013164,2]
[338548721,1726729845488,-500.0,0.00013164,2]
[338548722,1726729845499,-628.24,0.00013164,2]
[338548723,1726729845510,-500.0,0.00013164,2]
[338548724,1726729845521,-716.15,0.00013164,2]
[338548725,1726729845531,-1160.45,0.00013164,2]
[338548726,1726729845542,-500.0,0.00013164,2]
[338548727,1726729845554,-644.0,0.00013164,2]
[338548728,1726729845565,-500.0,0.00013164,2]
[338548729,1726729845576,-2580.92,0.00013164,2]
[338548730,1726729845586,-500.0,0.00013164,2]
[338548731,1726729845598,-773.32,0.00013164,2]
[338548732,1726729845610,-603.05,0.00013164,2]
[338548733,1726729845621,-1227.83,0.00013164,2]
[338548734,1726729845634,-878.47,0.00013164,2]
[338548735,1726729845645,-500.0,0.00013164,2]
[338548736,1726729845655,-557.96,0.00013164,2]
[338548737,1726729845666,-500.0,0.00013164,2]
[338548738,1726729845676,-1368.06,0.00013164,2]
[338548739,1726729845687,-500.0,0.00013164,2]
[338548740,1726729845697,-500.0,0.00013164,2]
[338548741,1726729845709,-500.0,0.00013164,2]
[338548742,1726729845720,-1811.56,0.00013164,2]
[338548743,1726729845732,-1307.12,0.00013164,2]
[338548744,1726729845743,-500.0,0.00013164,2]
[338548745,1726729845754,-736.04,0.00013164,2]
[338548746,1726729845765,-500.0,0.00013164,2]
[338548747,1726729845776,-500.0,0.00013164,2]
[338548748,1726729845787,-500.0,0.00013164,2]
[338548749,1726729845798,-500.0,0.00013164,2]
[338548750,1726729845809,-1291.24,0.00013164,2]
[338548751,1726729845820,-500.0,0.00013164,2]
[338548752,1726729845831,-500.0,0.00013164,2]
[338548753,1726729845842,-500.0,0.00013164,2]
[338548754,1726729845852,-500.0,0.00013164,2]
[338548755,1726729845864,-500.0,0.00013164,2]
[338548756,1726729845875,-505.65,0.00013164,2]
[338548757,1726729845888,-500.0,0.00013164,2]
[338548758,1726729845899,-500.0,0.00013164,2]
[338548759,1726729845909,-583.87,0.00013164,2]
[338548760,1726729845920,-500.0,0.00013164,2]
[338548761,1726729845931,-500.0,0.00013164,2]
[338548762,1726729845942,-758.11,0.00013164,2]
[338548763,1726729845954,-1253.84,0.00013164,2]
[338548764,1726729845965,-500.0,0.00013164,2]
[338548765,1726729845975,-872.91,0.00013164,2]
[338548766,1726729845986,-500.0,0.00013164,2]
[338548767,1726729845997,-500.0,0.00013164,2]
[338548768,1726729846007,-1456.78,0.00013164,2]
[338548769,1726729846017,-705.32,0.00013164,2]
[338548770,1726729846027,-1567.87,0.00013164,2]
[338548771,1726729846038,-1173.05,0.00013164,2]
[338548772,1726729846048,-500.0,0.00013164,2]
[338548773,1726729846058,-500.0,0.00013164,2]
[338548774,1726729846069,-539.53,0.00013164,2]
[338548775,1726729846080,-1021.35,0.00013164,2]
[338548776,1726729846091,-500.0,0.00013164,2]
[338548777,1726729846102,-500.0,0.00013164,2]
[338548778,1726729846114,-1066.53,0.00013164,2]
[338548779,1726729846125,-500.0,0.00013164,2]
[338548780,1726729846141,-1098.11,0.00013164,2]
[338548781,1726729846153,-695.53,0.00013164,2]
[338548782,1726729846164,-640.21,0.00013164,2]
[338548783,1726729846174,-500.0,0.00013164,2]
[338548784,1726729846185,-500.0,0.00013164,2]
[338548785,1726729846196,-2293.44,0.00013164,2]
[338548786,1726729846207,-530.69320718,0.00013164,2]
[338548787,1726729846218,-500.0,0.00013164,2]
[338548788,1726729846228,-935.0,0.00013164,2]
[338548789,1726729846238,-806.24,0.00013164,2]
[338548790,1726729846249,-500.0,0.00013164,2]
[338548791,1726729846260,-562.84,0.00013164,2]
[338548792,1726729846270,-500.0,0.00013164,2]
[338548793,1726729846280,-500.0,0.00013164,2]
[338548794,1726729846291,-3885.34,0.00013164,2]
[338548795,1726729846301,-500.0,0.00013164,2]
[338548796,1726729846311,-500.0,0.00013164,2]
[338548797,1726729846321,-500.0,0.00013164,2]
[338548798,1726729846331,-675.88,0.00013164,2]
[338548799,1726729846342,-1392.55,0.00013164,2]
[338548800,1726729846353,-500.0,0.00013164,2]
[338548801,1726729846367,-639.39,0.00013164,2]
[338548802,1726729846377,-500.0,0.00013164,2]
[338548803,1726729846391,-688.01,0.00013164,2]
[338548804,1726729846400,-2048.2,0.00013164,2]
[338548805,1726729846411,-500.0,0.00013164,2]
[338548806,1726729846422,-3167.43,0.00013164,2]
[338548807,1726729846432,-500.0,0.00013164,2]
[338548808,1726729846443,-500.0,0.00013164,2]
[338548809,1726729846453,-731.46,0.00013164,2]
[338548810,1726729846465,-1452.09,0.00013164,2]
[338548811,1726729846476,-777.14,0.00013164,2]
[338548812,1726729846486,-658.27,0.00013164,2]
[338548813,1726729846496,-500.0,0.00013164,2]
[338548814,1726729846508,-818.77,0.00013164,2]
[338548815,1726729846519,-556.65,0.00013164,2]
[338548816,1726729846531,-500.0,0.00013164,2]
[338548817,1726729846541,-821.7,0.00013164,2]
[338548818,1726729846551,-2195.66,0.00013164,2]
[338548819,1726729846563,-500.0,0.00013164,2]
[338548820,1726729846574,-500.0,0.00013164,2]
[338548821,1726729846585,-1045.84,0.00013164,2]
[338548822,1726729846595,-2240.15,0.00013164,2]
[338548823,1726729846606,-500.0,0.00013164,2]
[338548824,1726729846616,-1358.54,0.00013164,2]
[338548825,1726729846626,-500.0,0.00013164,2]
[338548826,1726729846639,-1237.6,0.00013164,2]
[338548827,1726729846649,-500.0,0.00013164,2]